[Event "Dvaro taure"]
[Site "Taujenai, Lithuania"]
[Date "2021.11.28"]
[Round "8.10"]
[White "Kurmis, Edvinas"]
[Black "Posaskov, Nikita"]
[Result "0-1"]
[WhiteElo "1665"]
[BlackElo "1971"]
[PlyCount "70"]
[EventDate "2021.??.??"]
[TimeControl "10+5"]
[WhiteClock "0:00:20"]
[BlackClock "0:01:05"]

1. e4 {[%emt 0:00:03]} c5 {[%emt 0:00:00]} 2. Nf3 {[%emt 0:00:02]} e6 {[%emt 0:
00:02]} 3. d4 {[%emt 0:00:00]} cxd4 {[%emt 0:00:02]} 4. Nxd4 {[%emt 0:00:00]}
Nc6 {[%emt 0:00:00]} 5. Nc3 {[%emt 0:00:03]} Qc7 {[%emt 0:00:03]} 6. Be3 {
[%emt 0:00:09]} a6 {[%emt 0:00:04]} 7. Qd2 {[%emt 0:00:14]} Nf6 {[%emt 0:00:09]
} 8. Bd3 {[%emt 0:00:06]} Ng4 {[%emt 0:00:38]} 9. Nxc6 {[%emt 0:00:39]} bxc6 {
[%emt 0:00:04]} 10. Bf4 {[%emt 0:00:50]} e5 {[%emt 0:00:02]} 11. Bg3 {[%emt 0:
00:04]} Bc5 {[%emt 0:00:23]} 12. O-O {[%emt 0:00:04]} O-O {[%emt 0:01:23]} 13.
Qg5 {[%emt 0:00:16]} d6 {[%emt 0:00:13]} 14. h3 {[%emt 0:00:08]} h6 {[%emt 0:
00:07]} 15. Qd2 {[%emt 0:00:33]} Nf6 {[%emt 0:00:02]} 16. Bh4 {[%emt 0:00:11]}
Nh5 {[%emt 0:00:05]} 17. Ne2 {[%emt 0:00:47]} d5 {[%emt 0:01:06]} 18. g4 {
[%emt 0:00:25]} Nf4 {[%emt 0:00:01]} 19. Kh2 {[%emt 0:01:24]} g5 {[%emt 0:02:
30]} 20. Bg3 {[%emt 0:00:08]} Qd7 {[%emt 0:00:01]} 21. Bxf4 {[%emt 0:01:01]}
gxf4 {[%emt 0:00:15]} 22. Qa5 {[%emt 0:01:54]} Qd6 {[%emt 0:01:24]} 23. a3 {
[%emt 0:00:44]} Be6 {[%emt 0:00:48]} 24. b4 {[%emt 0:00:11]} Ba7 {[%emt 0:00:
01]} 25. exd5 {[%emt 0:00:27]} cxd5 {[%emt 0:00:03]} 26. Qxa6 {[%emt 0:00:53]}
Qe7 {[%emt 0:01:13]} 27. Bf5 {[%emt 0:00:18]} Bd4 {[%emt 0:00:43]} 28. Qd3 {
[%emt 0:00:20]} Bxa1 {[%emt 0:00:01]} 29. Rxa1 {[%emt 0:00:13]} Rfc8 {[%emt 0:
00:10]} 30. Bxe6 {[%emt 0:00:07]} Qxe6 {[%emt 0:00:02]} 31. a4 {[%emt 0:00:07]}
e4 {[%emt 0:00:06]} 32. Qd2 {[%emt 0:00:04]} e3 {[%emt 0:00:07]} 33. fxe3 {
[%emt 0:00:06]} fxe3 {[%emt 0:00:01]} 34. Qd3 {[%emt 0:00:06]} Qe5+ {[%emt 0:
00:02]} 35. Kg2 {[%emt 0:00:01]} Qxa1 {[%emt 0:00:03]} 0-1

[Event "Dvaro taure"]
[Site "Taujenai, Lithuania"]
[Date "2021.11.28"]
[Round "8.11"]
[White "Spevak, Dovydas"]
[Black "Valantiejus, Vaidotas"]
[Result "0-1"]
[WhiteElo "1523"]
[BlackElo "1962"]
[PlyCount "101"]
[EventDate "2021.??.??"]
[TimeControl "10+5"]
[WhiteClock "0:00:17"]
[BlackClock "0:00:57"]

1. f4 {[%emt 0:00:00]} d5 {[%emt 0:00:05]} 2. Nf3 {[%emt 0:00:02]} g6 {[%emt 0:
00:02]} 3. e3 {[%emt 0:00:03]} Bg7 {[%emt 0:00:02]} 4. d4 {[%emt 0:00:37]} Nh6
{[%emt 0:00:05]} 5. Bd3 {[%emt 0:00:15]} O-O {[%emt 0:00:03]} 6. O-O {[%emt 0:
00:13]} Bf5 {[%emt 0:00:09]} 7. b3 {[%emt 0:00:22]} Nd7 {[%emt 0:00:17]} 8. a4
{[%emt 0:00:25]} Nf6 {[%emt 0:00:34]} 9. Re1 {[%emt 0:00:33]} c6 {[%emt 0:00:
46]} 10. Nbd2 {[%emt 0:00:13]} Re8 {[%emt 0:00:59]} 11. Ba3 {[%emt 0:00:30]}
Ne4 {[%emt 0:01:47]} 12. h3 {[%emt 0:00:43]} Nxd2 {[%emt 0:00:38]} 13. Qxd2 {
[%emt 0:00:18]} Bxd3 {[%emt 0:00:06]} 14. Qxd3 {[%emt 0:00:27]} Nf5 {[%emt 0:
00:06]} 15. Kh2 {[%emt 0:00:14]} Nd6 {[%emt 0:00:11]} 16. Nd2 {[%emt 0:00:39]}
e6 {[%emt 0:00:49]} 17. Rab1 {[%emt 0:00:40]} f5 {[%emt 0:00:18]} 18. Bxd6 {
[%emt 0:00:13]} Qxd6 {[%emt 0:00:02]} 19. Nf3 {[%emt 0:00:16]} c5 {[%emt 0:00:
29]} 20. c3 {[%emt 0:00:32]} Rac8 {[%emt 0:00:49]} 21. Ne5 {[%emt 0:00:25]}
Bxe5 {[%emt 0:00:10]} 22. fxe5 {[%emt 0:00:04]} Qc6 {[%emt 0:00:12]} 23. Qd2 {
[%emt 0:01:17]} cxd4 {[%emt 0:00:21]} 24. cxd4 {[%emt 0:00:36]} Qc3 {[%emt 0:
00:11]} 25. Qxc3 {[%emt 0:00:41]} Rxc3 {[%emt 0:00:02]} 26. Kg3 {[%emt 0:00:09]
} Rec8 {[%emt 0:00:05]} 27. Re2 {[%emt 0:00:30]} Rd3 {[%emt 0:00:06]} 28. Kf4 {
[%emt 0:00:19]} Rcc3 {[%emt 0:00:04]} 29. Kg5 {[%emt 0:00:31]} Kg7 {[%emt 0:00:
01]} 30. Kf4 {[%emt 0:00:27]} Rxb3 {[%emt 0:00:47]} 31. Rxb3 {[%emt 0:00:22]}
Rxb3 {[%emt 0:00:01]} 32. Rc2 {[%emt 0:00:01]} h6 {[%emt 0:01:09]} 33. Rc7+ {
[%emt 0:00:02]} Kf8 {[%emt 0:00:03]} 34. Rh7 {[%emt 0:00:11]} g5+ {[%emt 0:00:
04]} 35. Kf3 {[%emt 0:00:02]} f4 {[%emt 0:00:08]} 36. Rxh6 {[%emt 0:00:02]}
Rxe3+ {[%emt 0:00:01]} 37. Kf2 {[%emt 0:00:06]} Rd3 {[%emt 0:00:12]} 38. Rxe6 {
[%emt 0:00:07]} Rxd4 {[%emt 0:00:03]} 39. Rg6 {[%emt 0:00:03]} Rxa4 {[%emt 0:
00:15]} 40. Rxg5 Kf7 {[%emt 0:00:14]} 41. Rh5 {[%emt 0:00:11]} b5 {[%emt 0:00:
10]} 42. Kf3 {[%emt 0:00:05]} a5 {[%emt 0:00:09]} 43. h4 {[%emt 0:00:05]} b4 {
[%emt 0:00:13]} 44. Kxf4 {[%emt 0:00:01]} b3+ {[%emt 0:00:01]} 45. Kf5 {[%emt
0:00:04]} b2 {[%emt 0:00:01]} 46. Rh7+ {[%emt 0:00:02]} Kg8 {[%emt 0:00:02]}
47. Rb7 {[%emt 0:00:05]} Rb4 {[%emt 0:00:01]} 48. Rxb4 {[%emt 0:00:20]} axb4 {
[%emt 0:00:02]} 49. e6 {[%emt 0:00:01]} b1=Q+ {[%emt 0:00:02]} 50. Kf6 {[%emt
0:00:01]} Qf1+ {[%emt 0:00:08]} 51. Ke7 {[%emt 0:00:02]} 0-1

[Event "Dvaro taure"]
[Site "Taujenai, Lithuania"]
[Date "2021.11.28"]
[Round "8.13"]
[White "Griksaite, Egle"]
[Black "Bagdanskis, Dangis"]
[Result "0-1"]
[WhiteElo "1508"]
[BlackElo "1861"]
[PlyCount "104"]
[EventDate "2021.??.??"]
[TimeControl "10+5"]
[WhiteClock "0:00:26"]
[BlackClock "0:05:44"]

1. d4 {[%emt 0:00:01]} d5 {[%emt 0:00:02]} 2. Bf4 {[%emt 0:00:05]} Nf6 {[%emt
0:00:04]} 3. Nf3 {[%emt 0:00:04]} Bf5 {[%emt 0:00:02]} 4. e3 {[%emt 0:00:02]}
e6 {[%emt 0:00:01]} 5. Bd3 {[%emt 0:00:03]} Bxd3 {[%emt 0:00:05]} 6. Qxd3 {
[%emt 0:00:06]} a6 {[%emt 0:00:06]} 7. c3 {[%emt 0:00:12]} c5 {[%emt 0:00:02]}
8. Nbd2 {[%emt 0:00:03]} Nc6 {[%emt 0:00:02]} 9. h3 {[%emt 0:00:07]} Qb6 {
[%emt 0:00:03]} 10. Rb1 {[%emt 0:00:11]} Rc8 {[%emt 0:00:18]} 11. O-O {[%emt 0:
00:05]} Be7 {[%emt 0:00:03]} 12. Ne5 {[%emt 0:00:41]} O-O {[%emt 0:00:22]} 13.
Ndf3 {[%emt 0:00:09]} Qa5 {[%emt 0:00:15]} 14. Ra1 {[%emt 0:00:19]} c4 {[%emt
0:00:09]} 15. Qc2 {[%emt 0:00:04]} b5 {[%emt 0:00:03]} 16. a3 {[%emt 0:00:34]}
Qb6 {[%emt 0:00:04]} 17. Bg5 {[%emt 0:00:46]} Qb7 {[%emt 0:00:27]} 18. Rfe1 {
[%emt 0:01:38]} a5 {[%emt 0:00:22]} 19. Qd2 {[%emt 0:00:40]} Nxe5 {[%emt 0:01:
43]} 20. Nxe5 {[%emt 0:00:24]} Ne4 {[%emt 0:00:02]} 21. Qe2 {[%emt 0:00:48]}
Nxg5 {[%emt 0:00:31]} 22. f3 {[%emt 0:00:27]} f6 {[%emt 0:00:11]} 23. Ng4 {
[%emt 0:00:06]} Nf7 {[%emt 0:00:03]} 24. e4 {[%emt 0:00:05]} Rfe8 {[%emt 0:00:
36]} 25. e5 {[%emt 0:00:13]} f5 {[%emt 0:00:05]} 26. Ne3 {[%emt 0:00:29]} b4 {
[%emt 0:00:04]} 27. axb4 {[%emt 0:00:37]} axb4 {[%emt 0:00:02]} 28. Ra4 {[%emt
0:01:06]} bxc3 {[%emt 0:00:08]} 29. bxc3 {[%emt 0:00:04]} Qb3 {[%emt 0:00:07]}
30. Qc2 {[%emt 0:00:31]} Bg5 {[%emt 0:00:18]} 31. Qxb3 {[%emt 0:00:43]} cxb3 {
[%emt 0:00:03]} 32. Nd1 {[%emt 0:00:11]} Bd2 {[%emt 0:00:18]} 33. Re2 {[%emt 0:
00:05]} Bxc3 {[%emt 0:00:08]} 34. Nxc3 {[%emt 0:00:05]} Rxc3 {[%emt 0:00:03]}
35. Rb2 {[%emt 0:00:02]} Rec8 {[%emt 0:00:04]} 36. Rb4 {[%emt 0:00:10]} g5 {
[%emt 0:00:26]} 37. Rb6 {[%emt 0:00:07]} R8c6 {[%emt 0:00:06]} 38. R6xb3 {
[%emt 0:00:06]} Rxb3 {[%emt 0:00:02]} 39. Rxb3 {[%emt 0:00:02]} Kg7 {[%emt 0:
00:03]} 40. Kf2 {[%emt 0:00:05]} h5 {[%emt 0:00:02]} 41. g3 {[%emt 0:00:10]}
Kg6 {[%emt 0:00:03]} 42. Ke3 {[%emt 0:00:03]} Nh6 {[%emt 0:00:15]} 43. Ra3 {
[%emt 0:00:30]} f4+ {[%emt 0:00:02]} 44. gxf4 {[%emt 0:00:02]} Nf5+ {[%emt 0:
00:00]} 45. Kd3 {[%emt 0:00:08]} gxf4 {[%emt 0:00:03]} 46. Ra8 {[%emt 0:00:13]}
Rb6 {[%emt 0:00:21]} 47. Ra3 {[%emt 0:00:14]} Rb4 {[%emt 0:00:04]} 48. Ra8 {
[%emt 0:00:08]} Rxd4+ {[%emt 0:00:09]} 49. Ke2 {[%emt 0:00:02]} Ng3+ {[%emt 0:
00:04]} 50. Kf2 {[%emt 0:00:02]} Rd2+ {[%emt 0:00:03]} 51. Kg1 {[%emt 0:00:03]}
Kf5 {[%emt 0:00:03]} 52. Rf8+ {[%emt 0:00:04]} Kxe5 {[%emt 0:00:05]} 0-1

[Event "Dvaro taure"]
[Site "Taujenai, Lithuania"]
[Date "2021.11.28"]
[Round "8.14"]
[White "Gerasimovic, Stanislav"]
[Black "Breikss, Peteris"]
[Result "1-0"]
[WhiteElo "1790"]
[BlackElo "1622"]
[PlyCount "148"]
[EventDate "2021.??.??"]
[TimeControl "10+5"]
[WhiteClock "0:00:40"]

1. e4 {[%emt 0:00:01]} c5 {[%emt 0:00:04]} 2. b3 {[%emt 0:00:02]} e5 {[%emt 0:
00:05]} 3. Bb2 {[%emt 0:00:02]} d6 {[%emt 0:00:06]} 4. f4 {[%emt 0:00:03]} Nc6
{[%emt 0:00:26]} 5. Nf3 {[%emt 0:00:04]} f6 {[%emt 0:00:14]} 6. f5 {[%emt 0:00:
18]} d5 {[%emt 0:00:16]} 7. exd5 {[%emt 0:00:22]} Qxd5 {[%emt 0:00:09]} 8. Nc3
{[%emt 0:00:04]} Qd8 {[%emt 0:00:06]} 9. Bd3 {[%emt 0:00:05]} Nge7 {[%emt 0:00:
43]} 10. O-O {[%emt 0:00:04]} Nd4 {[%emt 0:01:35]} 11. Nxd4 {[%emt 0:01:16]}
cxd4 {[%emt 0:00:08]} 12. Qh5+ {[%emt 0:00:36]} Kd7 {[%emt 0:00:16]} 13. Ne4 {
[%emt 0:00:21]} Nc6 {[%emt 0:00:36]} 14. a3 {[%emt 0:01:21]} Qe8 {[%emt 0:00:
22]} 15. Qf3 {[%emt 0:00:09]} b6 {[%emt 0:00:59]} 16. b4 {[%emt 0:00:02]} Bb7 {
[%emt 0:00:13]} 17. c4 {[%emt 0:00:05]} a5 {[%emt 0:01:12]} 18. b5 {[%emt 0:00:
11]} Nd8 {[%emt 0:00:12]} 19. Qe2 {[%emt 0:00:23]} Rc8 {[%emt 0:00:04]} 20.
Rac1 {[%emt 0:00:04]} Bc5 {[%emt 0:00:32]} 21. a4 {[%emt 0:00:53]} Nf7 {[%emt
0:00:49]} 22. Nxc5+ {[%emt 0:00:15]} bxc5 {[%emt 0:00:10]} 23. Be4 {[%emt 0:00:
04]} Nd6 {[%emt 0:00:19]} 24. Bxb7 {[%emt 0:00:10]} Nxb7 {[%emt 0:00:02]} 25.
Ba3 {[%emt 0:00:25]} e4 {[%emt 0:00:33]} 26. Rf4 {[%emt 0:00:26]} Nd6 {[%emt 0:
00:10]} 27. d3 {[%emt 0:00:45]} Qe5 {[%emt 0:00:11]} 28. g3 {[%emt 0:00:10]}
exd3 {[%emt 0:00:17]} 29. Qxd3 {[%emt 0:00:14]} Rhe8 {[%emt 0:00:16]} 30. Rf3 {
[%emt 0:00:17]} Qe4 {[%emt 0:00:07]} 31. Rcf1 {[%emt 0:00:53]} Qxd3 {[%emt 0:
00:08]} 32. Rxd3 {[%emt 0:00:02]} Nxc4 {[%emt 0:00:14]} 33. Rc1 {[%emt 0:00:12]
} Nxa3 {[%emt 0:00:04]} 34. Rxa3 {[%emt 0:00:03]} c4 {[%emt 0:00:04]} 35. Kf2 {
[%emt 0:00:52]} Rc5 {[%emt 0:00:06]} 36. g4 {[%emt 0:00:02]} Kc7 {[%emt 0:00:
21]} 37. Rf3 {[%emt 0:00:17]} Kb6 {[%emt 0:00:10]} 38. Rf4 {[%emt 0:00:13]} Rd8
{[%emt 0:00:08]} 39. Ke2 {[%emt 0:00:05]} d3+ {[%emt 0:00:05]} 40. Kd2 {[%emt
0:00:01]} Rdc8 {[%emt 0:00:29]} 41. Rc3 {[%emt 0:00:11]} R8c7 {[%emt 0:00:11]}
42. Rd4 {[%emt 0:00:02]} Kb7 {[%emt 0:00:06]} 43. Rd6 {[%emt 0:00:05]} Re7 {
[%emt 0:00:11]} 44. Re6 {[%emt 0:00:02]} Rxe6 {[%emt 0:00:09]} 45. fxe6 {[%emt
0:00:02]} Kc7 {[%emt 0:00:10]} 46. e7 {[%emt 0:00:17]} Kd7 {[%emt 0:00:08]} 47.
b6 {[%emt 0:00:14]} Rc8 {[%emt 0:00:11]} 48. b7 {[%emt 0:00:16]} Rb8 {[%emt 0:
00:02]} 49. Rxc4 {[%emt 0:00:05]} Rxb7 {[%emt 0:00:01]} 50. Re4 {[%emt 0:00:10]
} Ke8 {[%emt 0:00:02]} 51. Kxd3 {[%emt 0:00:01]} Rxe7 {[%emt 0:00:02]} 52. Rc4
{[%emt 0:00:19]} Rd7+ {[%emt 0:00:03]} 53. Ke4 {[%emt 0:00:05]} Rd2 {[%emt 0:
00:04]} 54. Rc5 {[%emt 0:00:04]} Rxh2 {[%emt 0:00:04]} 55. Rxa5 {[%emt 0:00:02]
} Kf7 {[%emt 0:00:04]} 56. Ra7+ {[%emt 0:00:03]} Kg6 {[%emt 0:00:02]} 57. a5 {
[%emt 0:00:04]} Rh4 {[%emt 0:00:01]} 58. Kf3 {[%emt 0:00:01]} Rh3+ {[%emt 0:00:
09]} 59. Kf4 {[%emt 0:00:02]} Ra3 {[%emt 0:00:03]} 60. a6 {[%emt 0:00:12]} Ra4+
{[%emt 0:00:03]} 61. Kg3 {[%emt 0:00:02]} h6 {[%emt 0:00:07]} 62. Kf3 {[%emt 0:
00:05]} Ra5 {[%emt 0:00:06]} 63. Kf4 {[%emt 0:00:04]} f5 {[%emt 0:00:05]} 64.
gxf5+ {[%emt 0:00:16]} Rxf5+ {[%emt 0:00:02]} 65. Kg4 {[%emt 0:00:02]} Ra5 {
[%emt 0:00:01]} 66. Ra8 {[%emt 0:00:09]} Ra4+ {[%emt 0:00:02]} 67. Kg3 {[%emt
0:00:02]} h5 {[%emt 0:00:06]} 68. a7 {[%emt 0:00:08]} Kf7 {[%emt 0:00:06]} 69.
Kh3 {[%emt 0:00:03]} g5 {[%emt 0:00:09]} 70. Kg3 {[%emt 0:00:01]} Ke7 {[%emt 0:
00:07]} 71. Rh8 {[%emt 0:00:09]} h4+ {[%emt 0:00:04]} 72. Kg2 {[%emt 0:00:05]}
Ra2+ {[%emt 0:00:17]} 73. Kf3 {[%emt 0:00:01]} Ra3+ {[%emt 0:00:02]} 74. Kg4 {
[%emt 0:00:20]} Kf7 {[%emt 0:00:39]} 1-0

[Event "Dvaro taure"]
[Site "Taujenai, Lithuania"]
[Date "2021.11.28"]
[Round "8.15"]
[White "Cmilis, Viktoras"]
[Black "Posaskov, Sergej"]
[Result "1-0"]
[WhiteElo "1621"]
[BlackElo "1539"]
[PlyCount "111"]
[EventDate "2021.??.??"]
[TimeControl "10+5"]
[WhiteClock "0:02:56"]
[BlackClock "0:00:57"]

1. d4 {[%emt 0:00:02]} Nf6 {[%emt 0:00:04]} 2. Nf3 {[%emt 0:00:03]} d5 {[%emt
0:00:07]} 3. e3 {[%emt 0:00:11]} a6 {[%emt 0:00:10]} 4. a4 {[%emt 0:00:09]}
Nbd7 {[%emt 0:00:19]} 5. c4 {[%emt 0:00:15]} c6 {[%emt 0:00:06]} 6. a5 {[%emt
0:00:41]} b6 {[%emt 0:00:36]} 7. cxd5 {[%emt 0:00:53]} Nxd5 {[%emt 0:00:03]} 8.
Qc2 {[%emt 0:00:36]} Bb7 {[%emt 0:00:19]} 9. axb6 {[%emt 0:00:14]} Qxb6 {[%emt
0:00:23]} 10. Bd2 {[%emt 0:00:22]} a5 {[%emt 0:00:49]} 11. Na3 {[%emt 0:00:08]}
Nb4 {[%emt 0:00:24]} 12. Qc3 {[%emt 0:00:37]} Ba6 {[%emt 0:01:21]} 13. Bc4 {
[%emt 0:00:30]} Rb8 {[%emt 0:01:14]} 14. O-O {[%emt 0:00:42]} e6 {[%emt 0:00:
03]} 15. Rfc1 {[%emt 0:00:36]} Bb7 {[%emt 0:00:56]} 16. Nc2 {[%emt 0:01:13]}
Be7 {[%emt 0:01:13]} 17. b3 {[%emt 0:00:19]} O-O {[%emt 0:00:37]} 18. Ra4 {
[%emt 0:00:47]} c5 {[%emt 0:00:08]} 19. Nxb4 {[%emt 0:00:42]} axb4 {[%emt 0:00:
20]} 20. Qd3 {[%emt 0:00:12]} Bxf3 {[%emt 0:00:07]} 21. gxf3 {[%emt 0:00:02]}
Nf6 {[%emt 0:00:13]} 22. Ra6 {[%emt 0:00:20]} Qd8 {[%emt 0:00:39]} 23. Rca1 {
[%emt 0:00:43]} Nd5 {[%emt 0:00:02]} 24. e4 {[%emt 0:00:11]} Nc3 {[%emt 0:00:
08]} 25. Ra7 {[%emt 0:00:14]} cxd4 {[%emt 0:00:14]} 26. Bf4 {[%emt 0:00:12]}
Rc8 {[%emt 0:00:20]} 27. e5 {[%emt 0:00:11]} Bg5 {[%emt 0:00:18]} 28. Bg3 {
[%emt 0:00:04]} Be7 {[%emt 0:00:57]} 29. Kg2 {[%emt 0:00:05]} Bc5 {[%emt 0:00:
01]} 30. f4 {[%emt 0:00:13]} Bxa7 {[%emt 0:00:04]} 31. Rxa7 {[%emt 0:00:02]} h6
{[%emt 0:00:06]} 32. h4 {[%emt 0:00:04]} Re8 {[%emt 0:00:06]} 33. f5 {[%emt 0:
00:04]} Rc7 {[%emt 0:00:07]} 34. Ra1 {[%emt 0:00:06]} exf5 {[%emt 0:00:05]} 35.
Qxf5 {[%emt 0:00:04]} d3 {[%emt 0:00:11]} 36. Bxd3 {[%emt 0:00:02]} g6 {[%emt
0:00:01]} 37. Qf3 {[%emt 0:00:09]} Qd5 {[%emt 0:00:01]} 38. Qxd5 {[%emt 0:00:
06]} Nxd5 {[%emt 0:00:01]} 39. Bc4 {[%emt 0:00:09]} Nc3 {[%emt 0:00:06]} 40. e6
{[%emt 0:00:03]} Rce7 {[%emt 0:00:02]} 41. exf7+ {[%emt 0:00:05]} Rxf7 {[%emt
0:00:01]} 42. Ra7 {[%emt 0:00:05]} Ref8 {[%emt 0:00:06]} 43. Bd6 {[%emt 0:00:
03]} Kg7 {[%emt 0:00:08]} 44. Bxf8+ {[%emt 0:00:33]} Kxf8 {[%emt 0:00:45]} 45.
Rxf7+ {[%emt 0:00:03]} Ke8 {[%emt 0:00:01]} 46. Rb7 {[%emt 0:00:04]} Na2 {
[%emt 0:00:05]} 47. Rb6 {[%emt 0:00:06]} g5 {[%emt 0:00:02]} 48. Rxh6 {[%emt 0:
00:12]} gxh4 {[%emt 0:00:02]} 49. Rxh4 {[%emt 0:00:03]} Kd7 {[%emt 0:00:01]}
50. Rh6 {[%emt 0:00:02]} Kc7 {[%emt 0:00:04]} 51. f4 {[%emt 0:00:04]} Nc3 {
[%emt 0:00:02]} 52. Kf3 {[%emt 0:00:05]} Nd1 {[%emt 0:00:10]} 53. f5 {[%emt 0:
00:08]} Nb2 {[%emt 0:00:01]} 54. Be6 {[%emt 0:00:07]} Kd6 {[%emt 0:00:03]} 55.
Bg8+ {[%emt 0:00:04]} Ke5 {[%emt 0:00:05]} 56. f6 {[%emt 0:00:04] Ke6 [%clk 00:
00:52] [%emt 00:00:02] Rh7+ [%emt 00:00:06]} 1-0

[Event "Dvaro taure"]
[Site "Taujenai, Lithuania"]
[Date "2021.11.28"]
[Round "8.16"]
[White "Griksaite, Ieva"]
[Black "Jonaitis, Herkus"]
[Result "1-0"]
[WhiteElo "1518"]
[BlackElo "1277"]
[PlyCount "51"]
[EventDate "2021.??.??"]
[TimeControl "10+5"]
[WhiteClock "0:02:12"]
[BlackClock "0:06:07"]

1. e4 {[%emt 0:00:00]} c5 {[%emt 0:00:02]} 2. Nc3 {[%emt 0:00:03]} Nc6 {[%emt
0:00:03]} 3. Bb5 {[%emt 0:00:02]} e6 {[%emt 0:00:04]} 4. Bxc6 {[%emt 0:00:02]}
bxc6 {[%emt 0:00:01]} 5. d3 {[%emt 0:00:03]} d5 {[%emt 0:00:02]} 6. f4 {[%emt
0:00:03]} Ne7 {[%emt 0:00:09]} 7. Nf3 {[%emt 0:00:02]} g6 {[%emt 0:00:30]} 8.
O-O {[%emt 0:00:02]} Bg7 {[%emt 0:00:03]} 9. e5 {[%emt 0:00:03]} Nf5 {[%emt 0:
00:03]} 10. Na4 {[%emt 0:00:11]} Qa5 {[%emt 0:00:16]} 11. b3 {[%emt 0:00:02]}
O-O {[%emt 0:00:35]} 12. Ba3 {[%emt 0:00:01]} Ne3 {[%emt 0:00:08]} 13. Qe2 {
[%emt 0:00:04]} Nxf1 {[%emt 0:00:08]} 14. Rxf1 {[%emt 0:00:02]} Re8 {[%emt 0:
00:23]} 15. Bxc5 {[%emt 0:00:03]} Ba6 {[%emt 0:00:31]} 16. c4 {[%emt 0:00:16]}
dxc4 {[%emt 0:00:20]} 17. dxc4 {[%emt 0:00:03]} Red8 {[%emt 0:00:21]} 18. f5 {
[%emt 0:02:51]} exf5 {[%emt 0:00:43]} 19. e6 {[%emt 0:00:08]} Qc7 {[%emt 0:00:
35]} 20. e7 {[%emt 0:01:55]} Re8 {[%emt 0:00:18]} 21. Ng5 {[%emt 0:01:51]} Bf6
{[%emt 0:00:11]} 22. Rxf5 {[%emt 0:01:55]} gxf5 {[%emt 0:00:25]} 23. Qh5 {
[%emt 0:00:05]} Bxg5 {[%emt 0:00:09]} 24. Qxg5+ {[%emt 0:00:01]} Kh8 {[%emt 0:
00:08]} 25. Bd4+ {[%emt 0:00:01]} f6 {[%emt 0:00:07]} 26. Bxf6# {[%emt 0:00:02]
} 1-0

[Event "Dvaro taure"]
[Site "Taujenai, Lithuania"]
[Date "2021.11.28"]
[Round "8.17"]
[White "Andrusevics, Jegors"]
[Black "Ratkevicius, Andrius"]
[Result "1-0"]
[WhiteElo "1586"]
[BlackElo "1394"]
[PlyCount "71"]
[EventDate "2021.??.??"]
[TimeControl "10+5"]
[WhiteClock "0:04:44"]
[BlackClock "0:03:28"]

1. d4 {[%emt 0:00:05]} d5 {[%emt 0:00:03]} 2. Nf3 {[%emt 0:00:03]} c5 {[%emt 0:
00:00]} 3. c3 {[%emt 0:00:05]} Nf6 {[%emt 0:00:02]} 4. Bf4 {[%emt 0:00:05]} Bf5
{[%emt 0:00:02]} 5. e3 {[%emt 0:00:03]} Nc6 {[%emt 0:00:03]} 6. Nbd2 {[%emt 0:
00:06]} e6 {[%emt 0:00:02]} 7. h3 {[%emt 0:00:30]} cxd4 {[%emt 0:00:04]} 8.
exd4 {[%emt 0:00:02]} Be7 {[%emt 0:00:10]} 9. Be2 {[%emt 0:00:24]} O-O {[%emt
0:00:12]} 10. O-O {[%emt 0:00:03]} Qb6 {[%emt 0:00:24]} 11. Qb3 {[%emt 0:00:23]
} Rfd8 {[%emt 0:00:33]} 12. Ne5 {[%emt 0:00:18]} Nd7 {[%emt 0:00:14]} 13. Ndf3
{[%emt 0:00:12]} Bd6 {[%emt 0:00:24]} 14. Rac1 {[%emt 0:01:34]} Qc7 {[%emt 0:
00:15]} 15. Nxc6 {[%emt 0:01:30]} Bxf4 {[%emt 0:00:32]} 16. Nxd8 {[%emt 0:00:
07]} Bxc1 {[%emt 0:00:23]} 17. Nxe6 {[%emt 0:00:21]} fxe6 {[%emt 0:00:31]} 18.
Rxc1 {[%emt 0:00:04]} Rf8 {[%emt 0:00:21]} 19. Qd1 {[%emt 0:00:30]} Nf6 {[%emt
0:00:18]} 20. Bd3 {[%emt 0:00:38]} Bxd3 {[%emt 0:00:44]} 21. Qxd3 {[%emt 0:00:
04]} Qf4 {[%emt 0:00:07]} 22. Qd2 {[%emt 0:00:15]} Qe4 {[%emt 0:00:24]} 23. Re1
{[%emt 0:00:05]} Qf5 {[%emt 0:00:18]} 24. Re5 {[%emt 0:00:06]} Ne4 {[%emt 0:00:
26]} 25. Rxf5 {[%emt 0:00:05]} Rxf5 {[%emt 0:00:48]} 26. Qe2 {[%emt 0:00:11]}
g5 {[%emt 0:00:02]} 27. Nd2 {[%emt 0:00:15]} Nxd2 {[%emt 0:00:38]} 28. Qxd2 {
[%emt 0:00:03]} Kf7 {[%emt 0:00:04]} 29. Qe2 {[%emt 0:00:07]} Rf6 {[%emt 0:00:
26]} 30. Qb5 {[%emt 0:00:03]} h5 {[%emt 0:00:27]} 31. Qxb7+ {[%emt 0:00:03]}
Kg6 {[%emt 0:00:00]} 32. Qxa7 {[%emt 0:00:03]} g4 {[%emt 0:00:02]} 33. hxg4 {
[%emt 0:00:02]} hxg4 {[%emt 0:00:01]} 34. Qc7 {[%emt 0:00:06]} Kg5 {[%emt 0:00:
12]} 35. Qe5+ {[%emt 0:00:03]} Rf5 {[%emt 0:00:06]} 36. Qxe6 {[%emt 0:00:02]}
1-0